[Event "94th FRA-ch Veterans 2019"]
[Site "Chartres"]
[Date "2019.08.25"]
[Round "9.5"]
[White "Flachet, Thierry"]
[Black "Canonne, Antoine"]
[Result "1-0"]
[ECO "A30"]
[WhiteElo "2036"]
[BlackElo "1920"]
[Annotator "NA"]
[PlyCount "133"]
[EventDate "2019.08.17"]
[EventType "swiss"]
[EventCountry "FRA"]
[SourceTitle "playchess.com"]
[Source "ChessBase"]
[SourceQuality "1"]
[TimeControl "40/5400+30:1800+30"]

1. Nf3 {[%emt 0:00:00]} c5 {[%emt 0:00:00]} 2. c4 {[%emt 0:00:11]} Nc6 {[%emt 0:00:07]} 3. d4 {[%emt 0:00:11]} cxd4 {[%emt 0:00:22]} 4. Nxd4 {[%emt 0:00:08]} e6 {[%emt 0:00:26]} 5. a3 {[%emt 0:01:11]} Be7 {[%emt 0:03:52]} 6. Nc3 {[%emt 0:01:43]} Nxd4 {[%emt 0:02:30]} 7. Qxd4 {[%emt 0:00:08]} Bf6 {[%emt 0:00:14]} 8. Qd3 {[%emt 0:00:34]} Bxc3+ {[%emt 0:03:11]} 9. Qxc3 {[%emt 0:00:12]} Nf6 {[%emt 0:00:24]} 10. Bf4 {[%emt 0:06:01]} O-O {[%emt 0:01:34]} 11. g3 {[%emt 0:06:37]} a5 {[%emt 0:09:22]} 12. Bg2 {[%emt 0:01:42]} d6 {[%emt 0:08:00]} 13. O-O {[%emt 0:02:57]} e5 {[%emt 0:01:59]} 14. Be3 {[%emt 0:06:36]} Qc7 {[%emt 0:01:13]} 15. Bg5 {[%emt 0:05:30]} Be6 {[%emt 0:04:26]} 16. Bxf6 {[%emt 0:05:13]} gxf6 {[%emt 0:00:08]} 17. Qf3 {[%emt 0:00:54]} f5 {[%emt 0:01:40]} 18. Bh3 {[%emt 0:05:15]} Qd7 {[%emt 0:13:39]} 19. Rfd1 {[%emt 0:01:56]} Rac8 {[%emt 0:03:56]} 20. Rac1 {[%emt 0:01:05]} b6 {[%emt 0:00:13]} 21. b4 {[%emt 0:01:33]} axb4 {[%emt 0:00:07]} 22. axb4 {[%emt 0:00:04]} Rfd8 {[%emt 0:13:25]} 23. Qe3 {[%emt 0:02:29]} f4 {[%emt 0:03:02]} 24. Bxe6 {[%emt 0:00:07]} fxe3 {[%emt 0:00:06]} 25. Bxd7 {[%emt 0:00:06]} exf2+ {[%emt 0:00:07]} 26. Kxf2 {[%emt 0:00:21]} Rxd7 {[%emt 0:00:06]} 27. Rd5 {[%emt 0:02:00]} Kf8 {[%emt 0:01:35]} 28. c5 {[%emt 0:10:14]} bxc5 {[%emt 0:00:27]} 29. bxc5 {[%emt 0:00:04]} Rc6 {[%emt 0:02:04]} 30. Rcd1 {[%emt 0:00:31]} Ke7 {[%emt 0:04:09]} 31. cxd6+ {[%emt 0:00:07]} Ke6 {[%emt 0:00:16]} 32. Kf3 {[%emt 0:03:38]} Rc4 {[%emt 0:04:16]} 33. Rb5 {[%emt 0:04:13]} f6 {[%emt 0:09:12]} 34. Rb6 {[%emt 0:03:16]} Rc3+ {[%emt 0:04:20]} 35. e3 {[%emt 0:03:41]} Rc2 {[%emt 0:00:26]} 36. h3 {[%emt 0:01:57]} Rc4 {[%emt 0:00:38]} 37. Ra1 {[%emt 0:00:32]} Rc8 {[%emt 0:00:34]} 38. Raa6 {[%emt 0:02:37]} h5 {[%emt 0:00:24]} 39. Ra4 {[%emt 0:01:13]} Kf5 {[%emt 0:02:35]} 40. Rh4 {[%emt 0:00:58]} Kg5 {[%emt 0:01:36]} 41. Ra4 {[%emt 0:31:32]} Kf5 {[%emt 0:31:15]} 42. Raa6 {[%emt 0:01:59]} Ke6 {[%emt 0:00:36]} 43. Rb4 {[%emt 0:02:24]} Kf5 {[%emt 0:00:43]} 44. Rb2 {[%emt 0:00:00]} Ke6 {[%emt 0:00:00]} 45. Rd2 {[%emt 0:00:00]} Kf5 {[%emt 0:00:00]} 46. g4+ {[%emt 0:00:00]} hxg4+ {[%emt 0:00:00]} 47. hxg4+ {[%emt 0:00:00]} Ke6 {[%emt 0:00:00]} 48. Rh2 {[%emt 0:00:00]} Rg8 {[%emt 0:00:00]} 49. Rh6 {[%emt 0:00:00]} Rg5 {[%emt 0:00:00]} 50. Rb6 {[%emt 0:02:28]} Rgg7 {[%emt 0:00:00]} 51. Ra6 {[%emt 0:04:52]} Rg5 {[%emt 0:00:00]} 52. Rh8 {[%emt 0:07:05]} Rgg7 {[%emt 0:00:00]} 53. Rf8 {[%emt 0:01:30]} Rg6 {[%emt 0:00:00]} 54. Re8+ {[%emt 0:00:23]} Kf7 {[%emt 0:00:00]} 55. Rh8 {[%emt 0:00:56]} Ke6 {[%emt 0:00:00]} 56. Raa8 {[%emt 0:01:11]} Rgg7 {[%emt 0:00:00]} 57. Rhe8+ {[%emt 0:01:00]} Kf7 {[%emt 0:01:58]} 58. Rf8+ {[%emt 0:00:10]} Kg6 {[%emt 0:00:45]} 59. Ra6 {[%emt 0:00:17]} Rgf7 {[%emt 0:02:02]} 60. Rg8+ {[%emt 0:01:12]} Kh7 {[%emt 0:00:16]} 61. Re8 {[%emt 0:00:12]} Kg6 {[%emt 0:00:20]} 62. Ke4 {[%emt 0:00:05]} Rb7 {[%emt 0:02:47]} 63. Kd5 {[%emt 0:01:40]} Rb3 {[%emt 0:01:09]} 64. Ke6 {[%emt 0:00:17]} Rd3 {[%emt 0:00:23]} 65. Rg8+ {[%emt 0:00:14]} Rg7 {[%emt 0:00:31]} 66. Rxg7+ {[%emt 0:00:12]} Kxg7 {[%emt 0:00:06]} 67. d7 {[%emt 0:00:26]} 1-0

[Event "94th FRA-ch Veterans 2019"]
[Site "Chartres"]
[Date "2019.08.25"]
[Round "9.6"]
[White "Lebret, Jean-Michel"]
[Black "Dziedziczak, Vincent"]
[Result "1-0"]
[ECO "B24"]
[WhiteElo "2030"]
[BlackElo "1880"]
[Annotator "NA"]
[PlyCount "83"]
[EventDate "2019.08.17"]
[EventType "swiss"]
[EventCountry "FRA"]
[SourceTitle "playchess.com"]
[Source "ChessBase"]
[SourceQuality "1"]
[TimeControl "40/5400+30:1800+30"]

1. e4 {[%emt 0:00:00]} c5 {[%emt 0:00:16]} 2. Nc3 {[%emt 0:00:00]} d6 {[%emt 0:00:32]} 3. g3 {[%emt 0:00:42]} Nc6 {[%emt 0:01:32]} 4. Bg2 {[%emt 0:00:16]} Nf6 {[%emt 0:01:04]} 5. d3 {[%emt 0:01:19]} e5 {[%emt 0:01:55]} 6. f4 {[%emt 0:01:31]} g6 {[%emt 0:06:46]} 7. Nf3 {[%emt 0:01:54]} Bg7 {[%emt 0:04:49]} 8. O-O {[%emt 0:00:49]} O-O {[%emt 0:06:42]} 9. Bd2 {[%emt 0:15:22]} b5 {[%emt 0:12:03]} 10. Nxb5 {[%emt 0:10:29]} Rb8 {[%emt 0:00:24]} 11. Nc3 {[%emt 0:00:13]} Rxb2 {[%emt 0:01:17]} 12. Qc1 {[%emt 0:00:07]} Rb7 {[%emt 0:07:01]} 13. Nh4 {[%emt 0:03:12]} c4 {[%emt 0:08:37]} 14. h3 {[%emt 0:09:03]} cxd3 {[%emt 0:05:36]} 15. cxd3 {[%emt 0:00:11]} Rc7 {[%emt 0:00:43]} 16. Nb5 {[%emt 0:01:37]} Ba6 {[%emt 0:05:35]} 17. Nxc7 {[%emt 0:00:47]} Qxc7 {[%emt 0:00:05]} 18. Qa3 {[%emt 0:00:19]} Qb6+ {[%emt 0:02:12]} 19. Kh2 {[%emt 0:00:09]} Qb5 {[%emt 0:05:21]} 20. Rac1 {[%emt 0:02:55]} Nd4 {[%emt 0:03:12]} 21. Rc3 {[%emt 0:03:11]} Bb7 {[%emt 0:01:49]} 22. Be3 {[%emt 0:16:00]} Bxe4 {[%emt 0:01:51]} 23. dxe4 {[%emt 0:00:53]} Nxe4 {[%emt 0:00:07]} 24. Bxd4 {[%emt 0:01:45]} exd4 {[%emt 0:01:26]} 25. Rb3 {[%emt 0:00:52]} Qe2 {[%emt 0:01:57]} 26. Rb2 {[%emt 0:01:22]} Qc4 {[%emt 0:01:07]} 27. Qb4 {[%emt 0:02:48]} Qxb4 {[%emt 0:01:38]} 28. Rxb4 {[%emt 0:00:03]} Nc3 {[%emt 0:00:16]} 29. Rb2 {[%emt 0:03:34]} Re8 {[%emt 0:01:55]} 30. Bf3 {[%emt 0:03:23]} d5 {[%emt 0:05:30]} 31. Ng2 {[%emt 0:04:01]} Ne4 {[%emt 0:01:06]} 32. Rd1 {[%emt 0:01:32]} Rc8 {[%emt 0:03:08]} 33. Ne1 {[%emt 0:03:40]} Nc3 {[%emt 0:03:43]} 34. Rc1 {[%emt 0:05:12]} Re8 {[%emt 0:00:09]} 35. Kg2 {[%emt 0:02:04]} Ne4 {[%emt 0:00:50]} 36. Nd3 {[%emt 0:02:10]} Bf8 {[%emt 0:00:28]} 37. Rb7 {[%emt 0:01:17]} Nd2 {[%emt 0:00:21]} 38. Bxd5 {[%emt 0:00:31]} Re2+ {[%emt 0:00:21]} 39. Nf2 {[%emt 0:00:27]} Be7 {[%emt 0:02:16]} 40. Rcc7 {[%emt 0:00:57]} Kf8 {[%emt 0:01:07]} 41. Rc8+ {[%emt 0:32:01]} Kg7 {[%emt 0:30:15]} 42. Re8 {[%emt 0:00:12]} 1-0